bitfinex/quotes_ETHUSD_20251128
["timestamp","ask_amount","ask_price","bid_price","bid_amount"]
[1764321037173,0.30167503,3069.6,3068.6,0.209]
[1764321037343,0.30167503,3069.5,3068.6,0.209]
[1764321037668,0.30167503,3069.9,3068.7,0.24158708]
[1764321037870,0.30167503,3069.8,3068.7,0.209]
[1764321038043,0.40127503,3069.7,3068.5,0.001]
[1764321038247,6.81718193,3069.6,3068.5,0.001]
[1764321038442,6.81718193,3069.6,3068.5,3.46890205]
[1764321038443,0.30167503,3069.5,3068.5,3.46890205]
[1764321038659,0.30167503,3069.4,3068.5,0.001]
[1764321038857,0.30167503,3069.3,3068.5,0.21]
[1764321039083,9.77326035,3069.6,3068.5,0.21]
[1764321039084,0.30167503,3069.2,3068.5,0.21]
[1764321039285,0.40127503,3069.5,3068.5,0.21]
[1764321039486,0.40127503,3069.4,3068.5,0.001]
[1764321039690,0.30167503,3069.3,3068.5,0.001]
[1764321040317,3.25797748,3069.4,3068.5,0.001]
[1764321040515,0.30167503,3069.3,3068.5,0.001]
[1764321040686,6.5155069,3069.6,3068.5,0.001]
[1764321040870,0.40127503,3069.5,3068.5,0.001]
[1764321041075,0.0996,3069.2,3068.5,0.001]
[1764321041869,0.40127503,3069.2,3068.5,0.001]
[1764321042075,0.0996,3068.9,3068.5,0.001]
[1764321042308,6.51720542,3068.8,3068.5,0.001]
[1764321042606,3.3581421,3068.9,3068.5,0.001]
[1764321042812,1.76050749,3071.1,3068.5,0.001]
[1764321042813,0.0996,3069.7,3068.5,0.001]
[1764321043018,0.60925179,3069.6,3068.5,0.001]
[1764321043316,0.30065179,3069.5,3068.5,0.001]
[1764321043515,0.0996,3069.2,3068.5,0.001]
[1764321043722,0.0996,3068.9,3068.5,0.001]
[1764321044387,6.51720542,3068.8,3068.5,0.001]
[1764321044791,0.0996,3068.6,3068.5,0.001]
[1764321044996,0.72559411,3069.3,3068.5,0.001]
[1764321045206,0.30024329,3069.2,3068.5,0.001]
[1764321045588,6.51593144,3069.4,3068.5,0.001]
[1764321046020,0.0996,3069.3,3068.5,0.001]
[1764321046329,6.51635604,3069.2,3068.5,0.001]
[1764321046541,0.209,3070.7,3069.2,0.6778]
[1764321046811,0.30048291,3070.8,3069.3,0.464]
[1764321047031,3.25819886,3071.1,3069.4,0.209]
[1764321047240,3.25819886,3071.1,3069.2,0.91749411]
[1764321047241,0.30048291,3071.0,3069.5,0.464]
[1764321047414,0.209,3070.9,3069.5,0.673]
[1764321047583,0.209,3070.9,3069.5,0.209]
[1764321047783,0.0996,3070.7,3069.5,0.209]
[1764321048016,0.209,3070.9,3069.5,0.209]
[1764321048017,0.0996,3070.8,3069.5,0.209]
[1764321048200,0.209,3070.9,3069.5,0.209]
[1764321048201,0.30048291,3070.7,3069.6,0.464]
[1764321048379,9.86935932,3070.7,3069.4,3.25786681]
[1764321048582,9.86935932,3070.7,3069.4,0.55397668]
[1764321048583,0.40008291,3070.6,3069.4,0.55397668]
[1764321048823,0.30048291,3070.6,3069.4,3.46695159]
[1764321049029,0.30048291,3070.6,3069.4,3.93095159]
[1764321049205,0.30048291,3070.5,3069.4,7.18891731]
[1764321049385,0.30048291,3070.4,3069.4,7.18891731]
[1764321049591,0.30048291,3070.6,3069.5,0.464]
[1764321049814,0.30048291,3070.5,3069.6,0.71889173]
[1764321050119,0.30048291,3070.9,3069.7,0.464]
[1764321050333,0.30048291,3070.8,3070.4,3.44878229]
[1764321050500,0.30048291,3070.7,3070.1,3.25716302]
[1764321050704,0.30048291,3070.6,3070.1,3.25716302]
[1764321050900,3.25656679,3070.8,3069.8,0.464]
[1764321050901,0.30209077,3070.5,3069.8,0.464]
[1764321051102,6.61273358,3070.8,3069.6,0.209]
[1764321051300,0.3021114,3070.7,3069.6,0.209]
[1764321051512,0.3021114,3070.6,3069.6,0.673]
[1764321051701,0.3021114,3070.5,3069.6,0.673]
[1764321051891,0.3021114,3070.4,3069.6,0.673]
[1764321052232,0.3021114,3070.3,3069.6,0.673]
[1764321052383,6.513385,3070.6,3069.7,3.25764732]
[1764321052586,0.3021114,3070.5,3069.3,0.464]
[1764321052789,0.3021114,3070.4,3069.3,0.464]
[1764321053142,0.3021114,3070.3,3069.4,1.04304182]
[1764321053306,0.3021114,3070.2,3069.4,1.04304182]
[1764321053496,0.3021114,3070.1,3069.4,1.50704182]
[1764321053689,9.76990671,3070.7,3069.4,1.50704182]
[1764321053894,0.30226325,3070.6,3069.2,0.4009]
[1764321054105,9.76990671,3070.7,3069.2,0.4009]
[1764321054106,0.30226325,3070.5,3069.2,3.65907802]
[1764321054314,0.40186325,3070.4,3069.2,3.65907802]
[1764321054504,6.81628467,3070.3,3069.2,3.65907802]
[1764321054691,0.30226325,3070.2,3069.2,6.70825604]
[1764321054887,0.30226325,3070.1,3069.3,0.6708256]
[1764321055122,0.30226325,3070.0,3069.2,0.1919]
[1764321055318,0.30226325,3069.9,3069.2,0.1919]
[1764321055635,0.30226325,3069.8,3068.5,0.465]
[1764321055792,0.30226325,3069.7,3068.7,0.72559411]
[1764321056101,0.30226325,3069.6,3068.8,0.74522243]
[1764321056306,9.77103213,3070.3,3068.8,0.74522243]
[1764321056307,0.30226325,3069.5,3068.8,0.74522243]
[1764321056521,0.30226325,3069.4,3068.9,3.25849652]
[1764321056724,3.46591487,3070.4,3069.0,0.0325839]
[1764321056926,3.46591487,3070.4,3068.9,10.23948956]
[1764321056927,0.30231654,3070.3,3069.3,0.6778]
[1764321057122,0.30231654,3070.2,3069.3,0.8868]
[1764321057337,0.30231654,3070.1,3069.4,0.464]
[1764321057522,0.30151654,3070.0,3069.4,0.464]
[1764321057723,3.25681611,3070.5,3069.9,0.4859]
[1764321057929,6.51253662,3071.0,3069.9,0.4859]
[1764321058313,6.51253662,3071.0,3069.9,0.9499]
[1764321058503,0.002,3071.1,3070.0,3.25732899]
[1764321058730,0.407504,3071.1,3069.3,0.1919]
[1764321058951,0.407504,3071.1,3068.5,3.25989896]
[1764321058952,0.405504,3070.4,3068.9,0.03258496]
[1764321059229,0.405504,3070.4,3068.6,0.464]
[1764321059230,0.209,3070.3,3068.6,0.464]
[1764321059409,0.0996,3070.1,3068.7,0.73087056]
[1764321059608,0.0996,3070.1,3068.5,0.001]
[1764321059799,0.0996,3069.7,3068.5,0.001]
[1764321059999,0.0996,3069.8,3068.6,0.464]
[1764321060197,6.06259972,3069.9,3068.5,0.001]
[1764321060401,0.0996,3069.9,3068.6,3.25881509]
[1764321060616,9.7726236,3069.8,3068.6,0.32598151]
[1764321060905,0.0996,3069.7,3068.5,0.001]
[1764321061112,0.0996,3069.4,3068.5,0.001]
[1764321061314,0.3086,3069.4,3068.5,0.001]
[1764321061516,0.0996,3069.1,3068.5,0.001]
[1764321062628,6.5167807,3069.0,3068.5,0.001]
[1764321062819,0.0996,3068.9,3068.5,0.001]
[1764321063617,0.209,3068.8,3068.5,0.001]
[1764321063810,0.3086,3068.8,3068.5,0.001]
[1764321064336,0.209,3068.8,3068.5,0.001]
[1764321064536,3.25870889,3068.7,3068.5,0.001]
[1764321064738,0.0996,3068.6,3068.5,0.001]
[1764321065036,0.209,3068.8,3068.5,0.001]
[1764321065243,6.72623059,3068.8,3068.5,0.001]
[1764321068408,6.82583059,3068.8,3068.5,0.001]
[1764321068614,3.35841509,3068.6,3068.5,0.001]
[1764321069640,0.30348182,3068.6,3068.5,0.001]
[1764321071744,3.56229691,3068.6,3068.5,0.001]
[1764321072343,0.30348182,3068.6,3068.5,0.001]
[1764321072838,3.56229691,3068.6,3068.5,0.001]
[1764321073739,0.30348182,3068.6,3068.5,0.001]
[1764321073938,3.56229691,3068.6,3068.5,0.001]
[1764321074140,3.66189691,3068.6,3068.5,0.001]
[1764321074726,4.38749102,3068.6,3068.5,0.001]
[1764321074926,4.79299502,3068.6,3068.5,0.001]
[1764321075244,0.72559411,3068.5,3066.3,3.74419953]
[1764321075446,0.72559411,3068.5,3066.3,0.001]
[1764321075447,0.0996,3067.2,3066.3,0.001]
[1764321075650,0.51248182,3067.1,3066.3,0.001]
[1764321075817,0.0996,3066.6,3066.3,0.001]
[1764321076019,0.51248182,3066.5,3066.3,0.001]
[1764321076311,0.40308182,3066.4,3066.3,0.001]
[1764321076511,0.30348182,3066.4,3066.3,0.001]
[1764321076731,0.30348182,3066.4,3066.3,0.471]
[1764321076930,0.30348182,3066.4,3066.3,0.953]
[1764321077144,0.30348182,3066.4,3066.3,0.001]
[1764321078038,0.30348182,3066.4,3066.3,0.953]
[1764321078237,0.30248919,3067.4,3066.3,0.953]
[1764321078419,0.30248919,3067.3,3066.4,0.482]
[1764321078623,0.30248919,3067.2,3066.4,0.482]
[1764321078820,0.30248919,3067.1,3066.4,0.90342191]
[1764321079040,0.30248919,3067.0,3066.4,3.74313744]
[1764321079241,0.30248919,3066.9,3066.4,3.74313744]
[1764321079446,0.30248919,3066.8,3066.4,3.74313744]
[1764321079749,3.26032364,3067.2,3066.3,3.75694401]
[1764321080066,0.30241516,3067.1,3066.3,0.001]
[1764321080219,0.0996,3066.9,3066.3,0.001]
[1764321080543,0.30241516,3066.8,3066.3,0.001]
[1764321080745,3.26094045,3066.6,3066.3,0.001]
[1764321080945,0.0996,3066.4,3066.3,0.001]
[1764321081250,1.01751916,3066.4,3066.3,0.001]
[1764321081720,1.01671916,3066.4,3066.3,0.001]
[1764321081919,1.01771916,3066.4,3066.3,0.001]
[1764321082131,0.91791916,3066.4,3066.3,0.001]
[1764321082445,1.01771916,3066.4,3066.3,0.001]
[1764321082845,4.2788723,3066.4,3066.3,0.001]
[1764321083553,3.5635683,3066.4,3066.3,0.001]
[1764321083720,0.30241516,3066.4,3066.3,0.001]
[1764321084048,3.5635683,3066.4,3066.3,0.001]
[1764321085232,0.30191445,3066.4,3066.3,0.001]
[1764321086041,0.30191445,3066.4,3066.3,0.9549]
[1764321086748,0.30191445,3066.4,3066.3,0.001]
[1764321086951,0.30191445,3066.4,3066.3,0.9549]
[1764321087155,3.56272453,3066.8,3066.3,1.39595897]
[1764321087450,0.30191445,3066.7,3066.4,0.4947]
[1764321087647,0.30191445,3066.6,3066.4,0.4947]
[1764321087855,3.26073838,3066.8,3066.5,0.4592]
[1764321088028,0.30206696,3066.7,3066.5,0.4592]
[1764321088224,0.30206696,3066.6,3066.5,0.4592]
[1764321088549,0.30206696,3066.6,3066.3,0.001]
[1764321088750,0.30206696,3066.5,3066.3,0.4957]
[1764321088945,0.30206696,3066.4,3066.3,0.001]
[1764321089452,0.30206696,3066.4,3066.3,0.9549]
[1764321090052,0.30206696,3066.4,3066.3,0.001]
[1764321091047,0.30206696,3066.4,3066.3,0.9549]
[1764321091246,0.30206696,3066.4,3066.3,0.4602]
[1764321091825,0.30206696,3066.4,3066.3,0.9549]
[1764321092853,0.30206696,3066.4,3066.3,0.4602]
[1764321093057,0.30206696,3066.4,3066.3,0.001]
[1764321093451,3.5632201,3066.4,3066.3,0.001]
[1764321094854,0.30206696,3066.4,3066.3,0.001]
[1764321095862,0.30206696,3066.4,3066.3,0.9549]
[1764321096047,3.5632201,3066.4,3066.3,0.001]
[1764321099452,3.56452221,3066.4,3066.3,0.001]
[1764321099652,3.66432221,3066.4,3066.3,0.001]
[1764321099857,4.79742032,3066.4,3066.3,0.001]
[1764321100097,8.23142032,3066.4,3066.3,0.001]
[1764321101339,4.79742032,3066.4,3066.3,0.001]
[1764321103239,7.66452532,3066.4,3066.3,0.001]
[1764321103484,8.53402162,3066.4,3066.3,0.001]
[1764321103639,5.66691662,3066.4,3066.3,0.001]
[1764321104240,0.505304,3066.2,3065.9,0.001]
[1764321104479,0.51336907,3066.1,3065.9,0.001]
[1764321104638,0.30336907,3066.0,3065.9,0.001]
[1764321104838,0.40316907,3066.0,3065.9,0.001]
[1764321105043,0.30336907,3066.0,3065.9,0.001]
[1764321105262,0.21,3066.1,3065.9,0.001]
[1764321105471,4.29187257,3066.0,3065.9,0.001]
[1764321105772,0.30469986,3066.0,3065.9,0.001]
[1764321105959,0.30389986,3066.0,3065.9,0.001]
[1764321106163,0.30389986,3066.0,3065.9,0.4729]
[1764321106367,3.56547846,3066.0,3065.9,0.4729]
[1764321106566,3.56547846,3066.0,3065.9,0.001]
[1764321107393,3.56547846,3066.0,3065.9,0.4729]
[1764321107898,0.30389986,3066.0,3065.9,0.9344]
[1764321108210,0.002,3066.4,3065.9,7.87739889]
[1764321108513,0.002,3066.4,3066.3,0.6656]
[1764321108881,0.002,3066.4,3066.3,1.1271]
[1764321109290,3.26315314,3066.4,3066.0,0.1937]
[1764321109491,0.002,3066.4,3066.0,0.1937]
[1764321109701,0.002,3066.4,3066.0,0.6552]
[1764321110400,0.002,3066.4,3066.1,0.4615]
[1764321110806,0.002,3066.4,3066.3,0.4719]
[1764321111309,0.002,3066.4,3066.3,0.9334]
[1764321112910,0.002,3066.4,3066.3,0.4719]
[1764321113312,0.002,3066.4,3066.0,0.6552]
[1764321113615,0.002,3066.4,3066.0,0.1937]
[1764321113781,0.002,3066.4,3066.1,0.4615]
[1764321114184,0.002,3066.4,3066.0,0.6552]
[1764321114380,0.002,3066.4,3066.0,0.1937]
[1764321114582,0.002,3066.4,3065.9,0.001]
[1764321115895,6.52430628,3066.4,3065.9,0.001]
[1764321116104,0.0998,3066.2,3065.9,0.001]
[1764321116299,6.52430628,3066.4,3065.9,0.001]
[1764321116300,0.72559411,3066.3,3065.9,0.001]
[1764321116504,0.2107,3066.0,3065.9,0.001]
[1764321116713,0.5205,3066.0,3065.9,0.001]
[1764321117997,4.71837271,3066.0,3065.9,0.001]
[1764321118618,5.12387671,3066.0,3065.9,0.001]
[1764321119526,5.69161109,3066.0,3065.9,0.001]
[1764321119684,4.40787271,3066.0,3065.9,0.001]
[1764321119884,4.19717271,3066.0,3065.9,0.001]
[1764321120091,0.30487828,3066.0,3065.9,0.9344]
[1764321123394,0.30487828,3066.0,3065.9,0.001]
[1764321123592,0.30487828,3066.0,3065.9,0.4729]
[1764321123942,0.30487828,3066.0,3065.9,0.9344]
[1764321124292,3.56645688,3066.0,3065.9,0.9344]
[1764321124695,0.30487828,3066.0,3065.9,0.9344]
[1764321125495,3.56645688,3066.0,3065.9,0.9344]
[1764321125699,0.30487828,3066.0,3065.9,0.4729]
[1764321125921,0.30487828,3066.0,3065.9,0.9344]
[1764321126509,3.56645688,3066.0,3065.9,0.9344]
[1764321126830,0.30487828,3066.0,3065.9,0.9344]
[1764321127325,3.56645688,3066.0,3065.9,0.9344]
[1764321127519,3.56645688,3066.0,3065.9,0.4729]
[1764321128724,3.56645688,3066.0,3065.9,0.9344]
[1764321130310,3.56565688,3066.0,3065.9,0.9344]
[1764321130514,0.30407828,3066.0,3065.9,0.9344]
[1764321130929,3.56565688,3066.0,3065.9,0.9344]
[1764321131708,3.56565688,3066.0,3065.9,0.001]
[1764321132735,0.30407828,3066.0,3065.9,0.9512]
[1764321135933,0.30607828,3066.0,3065.9,0.9512]
[1764321136445,3.56765688,3066.0,3065.9,0.4838]
[1764321136647,3.56765688,3066.0,3065.9,0.001]
[1764321138641,4.92445099,3066.0,3065.9,0.001]
[1764321138840,6.30798937,3066.0,3065.9,0.001]
[1764321139072,6.30967817,3066.0,3065.9,0.001]
[1764321139238,11.80975499,3066.0,3065.9,0.001]
[1764321139438,11.80975499,3066.0,3065.6,0.001]
[1764321139439,0.505304,3065.7,3065.6,0.001]
[1764321139658,0.741904,3065.7,3065.6,0.001]
[1764321139862,1.62151757,3065.7,3065.6,0.001]
[1764321140264,1.83111757,3065.7,3065.6,0.001]
[1764321140439,0.741904,3065.7,3065.6,0.001]
[1764321140643,4.00380177,3065.7,3065.6,0.001]
[1764321140966,3.59829777,3065.7,3065.6,0.001]
[1764321141328,3.47189777,3065.7,3065.6,0.001]
[1764321141840,4.19749188,3065.7,3065.6,0.001]
[1764321142236,4.71217546,3065.7,3065.6,0.001]
[1764321142435,4.50257546,3065.7,3065.6,0.001]
[1764321144580,4.71217546,3065.7,3065.6,0.001]
[1764321144901,4.81197546,3065.7,3065.6,0.001]
[1764321145187,4.60237546,3065.7,3065.6,0.001]
[1764321145357,4.50257546,3065.7,3065.6,0.001]
[1764321145561,4.71217546,3065.7,3065.6,0.001]
[1764321147284,5.11767946,3065.7,3065.6,0.001]
[1764321148750,5.32727946,3065.7,3065.6,0.001]
[1764321148946,4.71217546,3065.7,3065.6,0.001]
[1764321149188,8.14617546,3065.7,3065.6,0.001]
[1764321149386,4.81197546,3065.7,3065.6,0.001]
[1764321150176,5.11767946,3065.7,3065.6,0.001]
[1764321150348,4.50257546,3065.7,3065.6,0.001]
[1764321150555,0.30508358,3065.7,3065.6,0.9083]
[1764321153132,0.30508358,3065.7,3065.6,4.17030417]
[1764321153301,0.30508358,3065.7,3065.6,0.9083]
[1764321154192,0.30508358,3065.7,3065.6,4.17030417]
[1764321154387,0.30508358,3065.7,3065.6,4.91364523]
[1764321154719,0.30428358,3065.7,3065.6,4.91364523]
[1764321156017,0.30428358,3065.7,3065.6,4.71364523]
[1764321157698,0.30428358,3065.7,3065.6,3.97030417]
[1764321161622,0.30428358,3065.7,3065.6,4.18030417]
[1764321163825,0.30428358,3065.7,3065.6,3.65949417]
[1764321164121,0.30428358,3065.7,3065.6,3.65849417]
[1764321165927,0.30428358,3065.7,3065.6,4.11379417]
[1764321166299,0.30428358,3065.7,3065.6,4.85148458]
[1764321167626,0.30428358,3065.7,3065.6,0.9182]
[1764321167827,0.30428358,3065.7,3065.6,4.38920417]
[1764321168028,0.30428358,3065.7,3065.6,4.18020417]
[1764321169026,0.30428358,3065.7,3065.6,0.9182]
[1764321169429,0.30428358,3065.7,3065.6,4.18020417]
[1764321169802,0.30428358,3065.7,3065.5,3.26310628]
[1764321170118,0.002,3066.0,3065.6,0.9182]
[1764321170314,0.002,3065.7,3065.6,0.4629]
[1764321170522,0.30654485,3065.7,3065.6,0.4629]
[1764321173319,0.30654485,3065.7,3065.5,0.001]
[1764321173516,0.30654485,3065.7,3065.6,0.4629]
[1764321173517,0.002,3065.7,3065.6,0.4629]
[1764321173715,0.30668123,3065.7,3065.6,0.4629]
[1764321174240,0.30668123,3065.7,3065.6,0.9182]
[1764321174606,0.79878123,3065.7,3065.5,0.001]
[1764321174829,0.30468123,3065.6,3065.5,0.001]
[1764321175236,0.30468123,3065.6,3065.5,0.4639]
[1764321175723,0.30468123,3065.6,3065.5,0.9192]
[1764321176740,0.30468123,3065.6,3065.5,0.4639]
[1764321178108,0.30468123,3065.6,3065.5,3.72601058]
[1764321178610,0.30468123,3065.6,3065.5,0.4639]
[1764321178812,0.30388123,3065.6,3065.5,3.72601058]
[1764321179010,0.30388123,3065.6,3065.5,4.18131058]
[1764321179618,0.30388123,3065.6,3065.5,0.9192]
[1764321180618,0.30388123,3065.6,3065.5,0.4639]
[1764321181308,0.79598123,3065.6,3065.5,0.001]
[1764321181511,4.0579854,3065.6,3065.5,0.001]
[1764321181709,0.30388123,3065.6,3065.5,0.4639]
[1764321182126,0.79598123,3065.6,3065.5,0.001]
[1764321182329,0.30388123,3065.6,3065.5,0.001]
[1764321182526,0.30388123,3065.6,3065.5,0.4639]
[1764321183745,3.5658854,3065.6,3065.5,0.4639]
[1764321184330,4.0579854,3065.6,3065.5,0.001]
[1764321184519,0.79598123,3065.6,3065.5,0.001]
[1764321184844,0.30388123,3065.6,3065.5,0.001]
[1764321185348,0.30388123,3065.6,3065.5,0.4639]
[1764321186752,0.79598123,3065.6,3065.5,0.001]
[1764321187457,5.24747951,3065.6,3065.5,0.001]
[1764321187754,9.97895346,3065.6,3065.5,0.001]
[1764321188133,10.38445746,3065.6,3065.5,0.001]
[1764321188322,15.08504727,3065.6,3065.5,0.001]
[1764321188522,1.13109811,3065.5,3065.3,0.001]
[1764321188748,4.56509811,3065.3,3065.2,0.001]
[1764321188960,9.937567,3065.3,3065.2,0.001]
[1764321189261,9.937567,3065.3,3065.1,0.001]
[1764321189262,21.51638766,3065.3,3065.1,0.001]
[1764321189422,9.09990974,3065.0,3064.9,0.001]
[1764321189623,0.1,3064.7,3062.5,0.85402289]
[1764321189818,0.3683,3063.2,3062.5,0.4592]
[1764321190249,0.3683,3063.2,3062.5,0.39435812]
[1764321190250,0.4903,3063.1,3062.5,0.39435812]
[1764321190427,0.4903,3063.1,3062.5,0.001]
[1764321190626,0.98071104,3063.4,3063.0,0.4826]
[1764321190850,0.30445458,3063.3,3063.0,0.4826]
[1764321191039,0.30445458,3063.2,3062.7,0.4816]
[1764321191244,0.30445458,3063.1,3062.7,0.4816]
[1764321191441,0.30397922,3063.0,3062.5,0.001]
[1764321191660,0.209,3063.5,3062.5,0.001]
[1764321191661,3.47325745,3063.5,3062.8,0.4816]
[1764321191963,0.30397226,3063.4,3062.9,0.03264879]
[1764321192124,0.209,3064.5,3063.4,0.6632]
[1764321192318,0.4816,3064.2,3063.4,0.6632]
[1764321192517,0.30371824,3064.1,3063.4,0.6632]
[1764321192754,0.30371824,3064.0,3063.5,0.4816]
[1764321192944,0.30371824,3063.9,3063.5,0.4816]
[1764321193250,3.26290241,3064.8,3063.5,0.4816]
[1764321193251,6.52618542,3064.6,3063.5,0.4816]
[1764321193467,4.76100556,3064.5,3063.8,0.4826]
[1764321193673,3.44758827,3064.9,3063.5,1.20719411]
[1764321193674,0.30356437,3064.4,3063.5,1.20719411]
[1764321193832,0.6632,3064.6,3063.6,0.03264133]
[1764321194024,0.30352515,3064.5,3063.7,0.24164027]
[1764321194223,0.30352515,3064.4,3063.7,0.209]
[1764321194427,0.30348632,3064.3,3063.8,0.6906]
[1764321194649,0.4686,3064.8,3063.8,0.6906]
[1764321194848,0.30349301,3064.7,3063.9,0.4816]
[1764321195051,0.30349301,3064.6,3064.0,0.03263707]
[1764321195349,0.30349301,3064.5,3064.1,0.6249]
[1764321195548,0.30349301,3064.4,3064.1,0.6249]
[1764321195853,0.30344833,3064.8,3064.2,7.04122402]
[1764321196035,0.30344833,3064.7,3064.3,0.9642]
[1764321196356,0.30344833,3064.6,3064.3,0.9642]
[1764321196527,0.209,3065.1,3064.3,1.24505745]
[1764321196732,1.0290287,3065.0,3064.5,0.4826]
[1764321196929,0.30343459,3064.9,3064.5,0.4826]
[1764321197132,0.30343459,3064.8,3064.5,0.9343]
[1764321197338,0.30343459,3064.7,3064.5,0.9343]
[1764321197648,0.30343459,3064.6,3064.5,0.9343]
[1764321197855,3.56612572,3065.0,3064.5,0.9343]
[1764321198028,0.30344904,3064.9,3064.5,0.9343]
[1764321198234,0.30344904,3064.8,3064.5,0.9343]
[1764321198432,0.30344904,3064.7,3064.5,4.19744389]
[1764321198624,3.2626098,3065.1,3064.7,0.453]
[1764321198948,3.26243265,3065.2,3064.7,0.453]
[1764321198949,0.30347973,3065.0,3064.7,0.453]
[1764321199152,0.30347973,3064.9,3064.7,0.453]
[1764321199333,0.30347973,3064.8,3064.7,0.453]
[1764321200052,0.30347973,3064.8,3064.7,0.253]
[1764321200249,0.30347973,3064.8,3064.3,0.209]
[1764321200556,0.30347973,3064.7,3064.3,3.47237373]
[1764321200755,0.4709,3064.8,3064.3,3.92407373]
[1764321200931,0.30355812,3064.7,3064.3,6.73576177]
[1764321201132,3.73180953,3065.2,3064.3,7.42366795]
[1764321201333,0.3036116,3065.1,3064.6,0.453]
[1764321201548,0.3036116,3065.0,3064.6,0.453]
[1764321201839,0.3036116,3064.9,3064.6,0.453]
[1764321202039,0.3036116,3064.8,3064.6,0.453]
[1764321202260,0.3036116,3064.7,3064.6,0.453]
[1764321202466,0.3036116,3064.7,3064.6,3.71606858]
[1764321202979,0.3028116,3064.7,3064.6,0.453]
[1764321203830,0.3028116,3064.7,3064.6,3.71606858]
[1764321204249,0.7737116,3064.7,3064.4,3.26326749]
[1764321204447,0.7737116,3064.7,3064.3,3.47236701]
[1764321204448,0.4709,3064.7,3064.3,3.47236701]
[1764321204655,3.45377831,3064.9,3064.3,3.92506701]
[1764321204858,0.002,3064.8,3064.3,3.26436701]
[1764321205235,0.002,3064.8,3064.3,3.71606701]
[1764321205633,0.002,3064.8,3064.3,3.26436701]
[1764321206244,0.4713,3064.8,3064.3,0.001]
[1764321206439,0.4709,3064.4,3064.3,0.001]
[1764321206866,0.4713,3064.8,3064.3,0.001]
[1764321208172,3.26296211,3064.7,3064.3,0.001]
[1764321208377,0.4709,3064.4,3064.3,0.001]
[1764321208743,0.9402,3064.4,3064.3,0.001]
[1764321211271,4.20348155,3064.4,3064.3,0.001]
[1764321211858,0.9402,3064.4,3064.3,0.001]
[1764321212174,0.4709,3064.4,3064.3,0.001]
[1764321213072,0.209,3064.6,3064.3,0.454]
[1764321213372,3.47216283,3064.6,3064.3,0.454]
[1764321214247,7.20462566,3064.6,3064.3,0.001]
[1764321214579,0.002,3064.8,3064.5,0.453]
[1764321214744,0.002,3064.8,3064.4,0.4517]
[1764321214745,0.002,3064.8,3064.7,0.453]
[1764321214944,0.30645419,3064.8,3064.7,0.453]
[1764321215378,0.1922617,3064.8,3064.7,0.453]
[1764321217971,0.1922617,3064.8,3064.3,0.001]
[1764321217972,4.39532451,3064.8,3064.3,0.001]
[1764321218171,0.4709,3064.4,3064.3,0.001]
[1764321218359,3.73231252,3064.7,3064.3,0.001]
[1764321218855,3.26285565,3064.8,3064.3,0.001]
[1764321219055,3.26279781,3064.9,3064.3,0.001]
[1764321219278,0.6783,3065.0,3064.3,0.4527]
[1764321219279,7.20368176,3065.0,3064.3,0.4527]
[1764321219478,3.94099088,3065.0,3064.3,0.4527]
[1764321219677,7.20368176,3065.0,3064.3,0.4527]
[1764321219866,3.26253629,3065.1,3064.3,0.001]
[1764321220074,3.47153629,3065.1,3064.3,0.4527]
[1764321220457,3.47153629,3065.1,3064.4,3.26328155]
[1764321220975,3.93773629,3065.1,3064.3,3.71607082]
[1764321221178,0.4662,3065.0,3064.3,0.001]
[1764321222360,0.4775,3064.4,3064.3,0.001]
[1764321222681,3.72324919,3064.9,3064.3,0.001]
[1764321222856,3.72324919,3064.9,3064.3,0.4703]
[1764321223050,4.18944919,3064.9,3064.3,0.4703]
[1764321223359,6.99176889,3064.9,3064.3,0.4703]
[1764321223879,3.26473027,3065.0,3064.3,0.9308]
[1764321224460,3.26473027,3065.0,3064.4,3.29587208]
[1764321225064,0.002,3065.0,3064.4,3.29587208]
[1764321225856,0.002,3065.0,3064.4,3.26323927]
[1764321226053,0.002,3065.0,3064.4,6.52652082]
[1764321226990,0.002,3065.0,3064.9,0.4693]
[1764321227168,0.0012,3065.0,3064.9,0.4693]
[1764321227478,0.30696056,3065.0,3064.9,0.4693]
[1764321227683,0.78446056,3065.0,3064.5,0.4605]
[1764321227875,0.30576056,3064.9,3064.5,0.4605]
[1764321228056,0.30576056,3064.8,3064.5,0.4605]
[1764321228255,0.2609,3064.6,3064.3,0.001]
[1764321228583,0.4775,3064.4,3064.3,0.001]
[1764321228784,0.78326056,3064.4,3064.3,0.001]
[1764321229272,4.51274211,3064.4,3064.3,0.001]
[1764321230361,4.72174211,3064.4,3064.3,0.001]
[1764321230565,0.30576056,3064.4,3064.3,0.4703]
[1764321230787,3.56904211,3064.4,3064.3,0.001]
[1764321231081,0.78326056,3064.4,3064.3,0.001]
[1764321231288,0.30576056,3064.4,3064.3,0.001]
[1764321232061,0.30576056,3064.4,3064.3,0.4703]
[1764321232381,4.04654211,3064.4,3064.3,0.001]
[1764321232583,0.78326056,3064.4,3064.3,0.001]
[1764321232781,0.30576056,3064.4,3064.3,0.001]
[1764321233660,4.51274211,3064.4,3064.3,0.001]
[1764321234063,4.04654211,3064.4,3064.3,0.001]
[1764321234263,4.51274211,3064.4,3064.3,0.001]
[1764321238286,4.04654211,3064.4,3064.3,0.001]
[1764321238486,4.51274211,3064.4,3064.3,0.001]
[1764321239398,4.04654211,3064.4,3064.3,0.001]
[1764321240294,4.51274211,3064.4,3064.3,0.001]
[1764321242875,4.04654211,3064.4,3064.3,0.001]
[1764321243072,0.30576056,3064.4,3064.3,0.4703]
[1764321243473,3.56904211,3064.4,3064.3,0.4703]
[1764321243796,0.30576056,3064.4,3064.3,0.4703]
[1764321244186,3.56904211,3064.4,3064.3,0.4703]
[1764321244389,3.56904211,3064.4,3064.3,0.001]